[Event "WALTON 40th BAN-ch U20 Girls 2022"]
[Site "Dhaka"]
[Date "2022.02.15"]
[Round "1.2"]
[White "Ayasa, Akter"]
[Black "Jannatul, Ferdous"]
[Result "0-1"]
[ECO "B30"]
[WhiteElo "1168"]
[BlackElo "1852"]
[Annotator "NA RC"]
[PlyCount "76"]
[EventDate "2022.02.15"]
[EventType "swiss"]
[EventCountry "BAN"]
[SourceTitle "playchess.com"]
[Source "ChessBase"]
[SourceQuality "1"]
[TimeControl "5400+30"]

{[%evp 8,74,1,0,-7,32767,32767,-26,32767,-50,-68,-68,-57,32767,-55,-70,-93,-133,-123,-181,32767,-210,-202,-316,-321,-344,-359,-356,-394,-501,-567,-554,-604,-531,-643,-579,-598,32767,32767,-841,-825,-814,-833,-803,-852,-990,-1054,-1047,-1116,-1140,-1182,-1251,-934,-1197,-1311,-1636,-1678,-2406,-2608,-29978,-29988,-29964,32767,-29991,-29992,32767,32767,-29995,-29995]} 1. e4 {[%emt 0:00:06]} c5 {[%emt 0:00:07]} 2. Nc3 {[%emt 0:00:21]} Nc6 {[%emt 0:00:07]} 3. Nf3 {[%emt 0:00:32]} Nf6 {[%emt 0:00:28]} 4. Bc4 {[%emt 0:00:29]} e6 {[%emt 0:00:08]} 5. d3 {[%emt 0:00:25]} d5 {[%emt 0:02:03]} 6. exd5 {[%emt 0:01:23]} exd5 {[%emt 0:00:03]} 7. Bb3 {[%emt 0:00:58]} h6 {[%emt 0:00:46]} 8. Qe2+ {[%emt 0:01:41]} Be7 {[%emt 0:00:40]} 9. h3 {[%emt 0:01:16]} O-O {[%emt 0:00:16]} 10. O-O {[%emt 0:00:09]} Re8 {[%emt 0:00:58]} 11. Re1 {[%emt 0:04:25]} a6 {[%emt 0:00:57]} 12. Bd2 {[%emt 0:02:44]} (12. a3 $142) 12... b5 {[%emt 0:00:39]} 13. a3 {[%emt 0:00:52]} (13. a4 $17 {keeps fighting.}) 13... c4 {[%emt 0:02:53]} 14. dxc4 {[%emt 0:01:03]} dxc4 {[%emt 0:00:28]} 15. Ba2 {[%emt 0:00:11] [#]} (15. Bxc4 {is a better defense.} bxc4 16. Qxc4) 15... Bxa3 $1 {[%emt 0:00:28]} 16. Qd1 {[%emt 0:01:45]} Bxb2 {[%emt 0:00:25]} 17. Rb1 {[%emt 0:00:16]} Ba3 {[%emt 0:00:37]} 18. Nh2 {[%emt 0:00:36]} Rxe1+ {[%emt 0:00:31]} 19. Qxe1 {[%emt 0:00:19]} Bf5 {[%emt 0:00:31]} 20. Qe3 {[%emt 0:02:59]} Bxc2 {[%emt 0:01:58]} 21. Re1 {[%emt 0:00:09]} Qd3 {[%emt 0:01:09]} 22. Qf4 {[%emt 0:02:19]} Bd6 {[%emt 0:01:17]} 23. Qe3 {[%emt 0:01:44]} Re8 {[%emt 0:00:30]} 24. Qxd3 {[%emt 0:00:32]} Rxe1+ {[%emt 0:00:17]} 25. Bxe1 {[%emt 1:15:46]} Bxd3 {[%emt 1:24:44]} 26. Nf3 {[%emt 0:00:00]} b4 {[%emt 0:00:00]} 27. Nd1 {[%emt 0:00:00]} b3 {[%emt 0:00:00]} 28. Bxb3 {[%emt 0:00:00]} cxb3 {[%emt 0:00:00]} 29. Nb2 {[%emt 0:00:00]} Bc2 {[%emt 0:00:00]} 30. Bc3 {[%emt 0:00:00]} Ne4 {[%emt 0:00:00]} 31. Bd4 {[%emt 0:00:00]} Nxd4 {[%emt 0:00:00]} 32. Nxd4 {[%emt 0:00:00]} Be5 {[%emt 0:00:00]} 33. Nxc2 {[%emt 0:00:00]} bxc2 {[%emt 0:00:00]} 34. Nd3 {[%emt 0:00:00]} Bb2 {[%emt 0:00:00]} 35. f3 {[%emt 0:00:00] [#]} Nc5 $1 {[%emt 0:00:00]} 36. Ne1 {[%emt 0:00:00]} c1=Q {[%emt 0:00:00]} 37. Kf1 {[%emt 0:00:00]} Bc3 {[%emt 0:00:00]} 38. Kf2 {[%emt 0:00:00]} Qxe1# {[%emt 0:00:00]} 0-1

[Event "WALTON 40th BAN-ch U20 Girls 2022"]
[Site "Dhaka"]
[Date "2022.02.15"]
[Round "1.3"]
[White "Nusrat Jahan, Alo"]
[Black "Alizah, Nusaiba Islam"]
[Result "1-0"]
[ECO "C57"]
[WhiteElo "1818"]
[BlackElo "1150"]
[Annotator "NA RC"]
[PlyCount "53"]
[EventDate "2022.02.15"]
[EventType "swiss"]
[EventCountry "BAN"]
[SourceTitle "playchess.com"]
[Source "ChessBase"]
[SourceQuality "1"]
[TimeControl "5400+30"]

{[%evp 9,52,12,32767,32767,-28,-16,559,543,687,684,729,32767,743,763,905,878,881,932,1042,1054,990,1067,990,1096,1063,877,1118,1035,1259,960,1370,1089,1014,1328,1139,1148,1760,5515,29996,29997,29997,1604,29998,29999,29999]} 1. e4 {[%emt 0:00:03]} e5 {[%emt 0:00:11]} 2. Nf3 {[%emt 0:00:13]} Nc6 {[%emt 0:00:47]} 3. Bc4 {[%emt 0:00:09]} Nf6 {[%emt 0:01:36]} 4. Ng5 {[%emt 0:00:18]} d5 {[%emt 0:02:46]} 5. exd5 {[%emt 0:00:18]} Nxd5 {[%emt 0:01:10]} 6. Qf3 {[%emt 0:00:42]} Qxg5 {[%emt 0:01:53] 6...Qxg5 is better than 6...Be6.} 7. Bxd5 {[%emt 0:00:25]} Be6 $2 {[%emt 0:01:05]} (7... Nd4 $1 $15 {keeps the upper hand.} 8. Qxf7+ (8. Bxf7+ $2 Ke7 $19) 8... Kd8) 8. Bxc6+ {[%emt 0:00:14]} bxc6 {[%emt 0:02:36]} 9. Qxc6+ {[%emt 0:00:35]} Ke7 {[%emt 0:02:55]} 10. Qxa8 {[%emt 0:00:49] [#]} Qg4 $146 {[%emt 0:06:35]} ({Predecessor:} 10... Bf5 11. d4 Qxc1+ 12. Ke2 Qxc2+ 13. Nd2 Bd3+ 14. Ke3 exd4+ 15. Kxd4 Kf6 16. Qf3+ Bf5 {1-0 (41) Torma,K (1115)-Vida,R Gyor 2019}) 11. O-O {[%emt 0:03:42]} Qe2 {[%emt 0:07:57]} 12. Qxa7 {[%emt 0:02:31]} Kd7 {[%emt 0:09:26]} 13. Nc3 {[%emt 0:00:38]} Qh5 {[%emt 0:03:59]} 14. Nb5 {[%emt 0:05:22]} Bd6 {[%emt 0:03:57]} 15. Nxd6 {[%emt 0:00:36]} Kxd6 {[%emt 0:00:16]} 16. d4 {[%emt 0:01:34]} Rd8 {[%emt 0:01:49]} 17. Qc5+ {[%emt 0:00:27]} Kd7 {[%emt 0:01:41]} 18. dxe5 {[%emt 0:00:12]} Ke8 {[%emt 0:03:38]} 19. Qxc7 {[%emt 0:02:37]} h6 {[%emt 0:03:12]} 20. Be3 {[%emt 0:00:20]} Rd7 {[%emt 0:09:06]} 21. Qb8+ {[%emt 0:01:19]} Rd8 {[%emt 0:34:25]} 22. Qb5+ {[%emt 1:18:26]} Rd7 {[%emt 0:00:00]} 23. Rad1 {[%emt 0:00:00]} Qf5 {[%emt 0:00:00]} 24. Qb8+ {[%emt 0:00:00]} Ke7 {[%emt 0:00:00]} 25. Bc5+ {[%emt 0:00:00]} Rd6 {[%emt 0:00:00]} 26. Qxd6+ {[%emt 0:00:00]} Ke8 {[%emt 0:00:00]} 27. Qf8# {[%emt 0:00:00]} 1-0

[Event "WALTON 40th BAN-ch U20 Girls 2022"]
[Site "Dhaka"]
[Date "2022.02.15"]
[Round "1.4"]
[White "Noshin, Ayman"]
[Black "Kazi Zarin, Tasnim"]
[Result "0-1"]
[ECO "C50"]
[WhiteElo "1129"]
[BlackElo "1801"]
[Annotator "NA RC"]
[PlyCount "58"]
[EventDate "2022.02.15"]
[EventType "swiss"]
[EventCountry "BAN"]
[SourceTitle "playchess.com"]
[Source "ChessBase"]
[SourceQuality "1"]
[TimeControl "5400+30"]

{[%evp 8,58,22,13,32767,32767,32767,23,18,8,13,12,32,14,0,5,14,0,0,-25,-27,-81,-57,-79,32767,-81,-90,-139,-122,-146,-76,-250,-149,-383,-403,-392,-385,-392,-393,-530,-719,-786,-868,-1067,-1080,-1429,-1248,-1024,-1254,-29970,-29979,-29980,-29988]} 1. e4 {[%emt 0:00:04]} e5 {[%emt 0:13:11]} 2. Nf3 {[%emt 0:00:34]} Nc6 {[%emt 0:00:14]} 3. Bc4 {[%emt 0:00:25]} Bc5 {[%emt 0:00:08]} 4. O-O {[%emt 0:01:27]} Nf6 {[%emt 0:00:12]} 5. d3 {[%emt 0:00:29]} d6 {[%emt 0:01:28]} 6. h3 {[%emt 0:00:31]} a6 {[%emt 0:01:03]} 7. a4 {[%emt 0:01:21]} h6 {[%emt 0:00:19]} 8. Nbd2 {[%emt 0:01:28]} O-O {[%emt 0:00:36]} 9. Re1 {[%emt 0:00:51]} Re8 {[%emt 0:00:18]} 10. Nf1 {[%emt 0:03:11]} Be6 {[%emt 0:01:22]} 11. Bxe6 {[%emt 0:03:26]} Rxe6 {[%emt 0:00:18]} 12. Ng3 {[%emt 0:01:28]} d5 {[%emt 0:00:48]} 13. b3 {[%emt 0:04:22]} dxe4 {[%emt 0:07:57]} 14. Nxe4 {[%emt 0:01:01]} (14. dxe4 $11 {keeps the balance.} Bb4 15. Rf1) 14... Nxe4 {[%emt 0:00:19]} 15. Rxe4 {[%emt 0:00:26]} f5 {[%emt 0:03:07]} 16. Re1 {[%emt 0:03:20]} e4 {[%emt 0:05:21]} 17. Nh2 {[%emt 0:03:03]} ({White should play} 17. dxe4 Qxd1 18. Rxd1) 17... Qf6 {[%emt 0:04:36]} 18. Bf4 {[%emt 0:03:26]} g5 {[%emt 0:12:08]} ({Black should play} 18... Nb4 19. dxe4 Rd8) 19. Bxc7 $2 {[%emt 0:02:06] [#]} (19. Be3 $17 Bb4 20. Bd2) 19... Qf7 {[%emt 0:01:06]} ({Better is} 19... Rc8 $1 $19 20. Bg3 f4) 20. b4 $2 {[%emt 0:03:09]} (20. dxe4 Qxc7 21. exf5) 20... Bxb4 {[%emt 0:00:36]} ({Not} 20... Qxc7 21. bxc5 Rd8 22. Qb1 $14) ({Wrong is} 20... Bxf2+ $2 21. Kxf2 Qxc7 22. Kg1 $19) 21. Bb6 {[%emt 0:08:01]} Bxe1 {[%emt 0:00:29]} 22. Qxe1 {[%emt 0:00:38]} exd3 {[%emt 0:00:09]} 23. Qd1 {[%emt 0:01:06]} Nb4 {[%emt 0:03:36]} 24. a5 {[%emt 0:04:48]} Nxc2 {[%emt 0:01:55]} 25. Rc1 {[%emt 0:01:35]} Re1+ {[%emt 0:00:31]} 26. Qxe1 {[%emt 0:02:00]} Nxe1 {[%emt 0:00:02]} 27. Rxe1 {[%emt 0:00:06]} Re8 {[%emt 0:00:38]} 28. Rd1 {[%emt 0:00:58]} Qb3 {[%emt 0:00:08]} 29. Ra1 {[%emt 0:02:16]} d2 {[%emt 0:00:11]} 0-1

[Event "WALTON 40th BAN-ch U20 Girls 2022"]
[Site "Dhaka"]
[Date "2022.02.15"]
[Round "1.5"]
[White "Wadifa, Ahmed"]
[Black "Marzuka, Mukarrama"]
[Result "1-0"]
[ECO "B12"]
[WhiteElo "1786"]
[BlackElo "1095"]
[Annotator "NA RC"]
[PlyCount "79"]
[EventDate "2022.02.15"]
[EventType "swiss"]
[EventCountry "BAN"]
[SourceTitle "playchess.com"]
[Source "ChessBase"]
[SourceQuality "1"]
[TimeControl "5400+30"]

1. e4 {[%emt 0:00:03]} c6 {[%emt 0:00:02]} 2. d4 {[%emt 0:00:15]} d5 {[%emt 0:00:06]} 3. e5 {[%emt 0:00:17]} c5 {[%emt 0:00:42]} 4. dxc5 {[%emt 0:04:04]} Nc6 {[%emt 0:01:02]} 5. Nf3 {[%emt 0:01:30]} e6 {[%emt 0:00:42]} 6. Be3 {[%emt 0:01:37]} Qc7 {[%emt 0:04:00]} 7. Bb5 {[%emt 0:00:43]} Qa5+ {[%emt 0:06:04]} 8. Nc3 {[%emt 0:00:11]} a6 {[%emt 0:00:40]} 9. Bxc6+ {[%emt 0:01:57]} bxc6 {[%emt 0:00:10]} 10. a3 {[%emt 0:03:13]} Ne7 {[%emt 0:06:43]} 11. Nd4 {[%emt 0:01:55]} Qc7 {[%emt 0:02:56]} 12. f4 {[%emt 0:00:44]} Nf5 {[%emt 0:03:12]} 13. Nxf5 {[%emt 0:00:18]} exf5 {[%emt 0:00:17]} 14. b4 {[%emt 0:00:27]} Be7 {[%emt 0:01:12]} 15. O-O {[%emt 0:00:21]} O-O {[%emt 0:00:55]} 16. Qd3 {[%emt 0:02:27]} Rd8 {[%emt 0:01:47]} 17. Bd4 {[%emt 0:02:38]} a5 {[%emt 0:07:20]} 18. Qg3 {[%emt 0:01:21]} Be6 {[%emt 0:09:12]} 19. b5 {[%emt 0:01:24]} cxb5 {[%emt 0:01:53]} 20. Nxb5 {[%emt 0:00:19]} Qc6 {[%emt 0:03:06]} 21. Nd6 {[%emt 0:00:14]} Rf8 {[%emt 0:02:54]} 22. Rab1 {[%emt 0:01:13]} Rab8 {[%emt 0:08:05]} 23. Qc3 {[%emt 0:01:27]} a4 {[%emt 0:02:51]} 24. Rb4 {[%emt 0:02:48]} Rxb4 {[%emt 0:06:29]} 25. axb4 {[%emt 0:00:22]} Bxd6 {[%emt 0:02:29]} 26. exd6 {[%emt 0:00:19]} f6 {[%emt 0:01:12]} 27. Rb1 {[%emt 0:00:30]} Qb5 {[%emt 0:01:38]} 28. c6 {[%emt 0:00:40]} Rc8 {[%emt 0:00:46]} 29. d7 {[%emt 0:01:58]} Ra8 {[%emt 0:04:43]} 30. Ra1 {[%emt 0:01:36]} Kf7 {[%emt 0:02:06]} 31. Qc5 {[%emt 0:01:56]} Qc4 {[%emt 0:07:13]} 32. Qxc4 {[%emt 0:01:46]} dxc4 {[%emt 0:00:10]} 33. Bb6 {[%emt 0:00:08]} Bd5 {[%emt 0:03:51]} 34. c7 {[%emt 0:00:13]} Be6 {[%emt 0:02:46]} 35. d8=Q {[%emt 0:00:08]} Bc8 {[%emt 0:00:55]} 36. Bc5 {[%emt 0:00:13]} Kg6 {[%emt 0:02:40]} 37. Qe8+ {[%emt 0:00:18]} Kh6 {[%emt 0:00:15]} 38. Ra3 {[%emt 0:00:03]} g6 {[%emt 0:00:46]} 39. Rh3+ {[%emt 0:00:11]} Kg7 {[%emt 0:00:30]} 40. Qf8# {[%emt 0:00:04]} 1-0

[Event "WALTON 40th BAN-ch U20 Girls 2022"]
[Site "Dhaka"]
[Date "2022.02.17"]
[Round "3.2"]
[White "Nusrat Jahan, Alo"]
[Black "Jannatul, Ferdousi"]
[Result "1/2-1/2"]
[ECO "C02"]
[WhiteElo "1818"]
[BlackElo "1609"]
[Annotator "NA RC"]
[PlyCount "102"]
[EventDate "2022.02.15"]
[EventType "swiss"]
[EventCountry "BAN"]
[SourceTitle "playchess.com"]
[Source "ChessBase"]
[SourceQuality "1"]
[TimeControl "5400+30"]

{[%evp 8,87,0,0,39,-9,54,14,17,-2,2,12,15,11,4,0,12,23,44,29,52,45,47,26,43,43,90,83,97,95,114,101,108,110,121,120,136,118,114,115,115,107,125,129,168,179,190,207,181,61,189,158,179,159,168,190,232,102,94,59,68,43,39,25,21,0,0,0,0,0,0,0,0,0,6,0,0,0,0,0,0,0]} 1. e4 {[%emt 0:00:04]} e6 {[%emt 0:00:02]} 2. d4 {[%emt 0:00:09]} d5 {[%emt 0:00:04]} 3. e5 {[%emt 0:00:06]} c5 {[%emt 0:00:30]} 4. c3 {[%emt 0:00:29]} Nc6 {[%emt 0:00:10]} 5. Nf3 {[%emt 0:00:32]} Nh6 {[%emt 0:01:21]} (5... Qb6 $11) 6. a3 {[%emt 0:06:24]} (6. Bxh6 $14 gxh6 7. Bb5) 6... a5 {[%emt 0:08:39]} ({Better is} 6... Nf5 $11) 7. Bd3 {[%emt 0:09:54]} (7. Bxh6 $14 {feels stronger.} gxh6 8. Bb5) 7... Nf5 $1 {[%emt 0:03:08]} 8. Bxf5 {[%emt 0:02:49]} exf5 {[%emt 0:02:14]} 9. O-O {[%emt 0:03:45]} Be7 {[%emt 0:03:33]} 10. dxc5 {[%emt 0:07:00]} Bxc5 {[%emt 0:03:38]} 11. Nbd2 {[%emt 0:08:30]} O-O {[%emt 0:03:21]} 12. Nb3 {[%emt 0:01:56]} Be7 {[%emt 0:04:26]} 13. Re1 {[%emt 0:04:45]} Be6 {[%emt 0:03:22]} 14. Nbd4 {[%emt 0:06:36]} Qb6 {[%emt 0:25:22]} 15. Qc2 {[%emt 0:04:47]} Bc5 {[%emt 0:05:27]} 16. Be3 {[%emt 0:09:48]} Nxd4 {[%emt 0:13:32]} (16... h6 $14 {deserves consideration.}) 17. Bxd4 {[%emt 0:02:32]} ({Of course not} 17. Nxd4 $6 f4 18. Bxf4 Bxd4 19. cxd4 Qxd4 $11) (17. cxd4 $6 Be7 $11) 17... Rac8 {[%emt 0:02:09]} 18. Rad1 {[%emt 0:02:47]} Bxd4 {[%emt 0:05:45]} 19. Nxd4 {[%emt 0:00:18]} g6 {[%emt 0:00:23]} 20. Qd2 {[%emt 0:03:56]} Qc5 {[%emt 0:02:17]} 21. h4 {[%emt 0:04:59]} Qe7 {[%emt 0:01:18]} 22. Qh6 {[%emt 0:01:50]} Rfe8 {[%emt 0:01:05]} 23. g3 {[%emt 0:04:39]} Qf8 {[%emt 0:01:36]} 24. Qf4 {[%emt 0:01:28]} Rcd8 {[%emt 0:01:43]} 25. h5 {[%emt 0:02:36]} f6 {[%emt 0:03:49]} (25... Bd7 $16 {was called for.} 26. Kg2 Qg7) 26. hxg6 {[%emt 0:00:36]} hxg6 {[%emt 0:00:02]} 27. Kg2 {[%emt 0:02:19]} Qg7 {[%emt 0:03:26]} 28. Re2 {[%emt 0:02:51]} ({White should try} 28. exf6 $18 Qxf6 29. Qc7) 28... g5 {[%emt 0:01:34] [#]} (28... fxe5 $1 $14 29. Qxe5 (29. Rxe5 g5 $11) 29... Qxe5 30. Rxe5 Bf7) 29. Nxe6 $1 {[%emt 0:00:33]} gxf4 {[%emt 0:00:29]} 30. Nxg7 {[%emt 0:00:05]} Kxg7 {[%emt 0:00:01]} 31. gxf4 {[%emt 0:00:01]} Kf7 {[%emt 0:01:00] [#]} (31... Re6 {was necessary.} 32. Kf3 Kf7) 32. Kf3 {[%emt 0:00:22]} (32. Red2 $1 $18 {and White stays clearly on top.}) 32... fxe5 {[%emt 0:00:28] [#]} 33. fxe5 {[%emt 0:00:08]} (33. Red2 $1 $16 {[%cal Rd2d5]}) 33... Ke6 {[%emt 0:00:28]} 34. Rg1 {[%emt 0:02:42]} Rg8 {[%emt 0:00:21]} 35. Rh1 {[%emt 0:03:31]} Rh8 {[%emt 0:00:01]} 36. Rg1 {[%emt 0:00:18]} Rdg8 {[%emt 0:01:07]} 37. Rg3 {[%emt 0:01:17]} Rxg3+ {[%emt 0:00:34]} 38. fxg3 {[%emt 0:00:16]} Rh1 {[%emt 0:00:27]} 39. Kg2 {[%emt 0:01:21]} Rd1 {[%emt 0:00:25]} 40. Kf3 {[%emt 0:00:26]} Rd3+ {[%emt 0:00:34]} 41. Re3 {[%emt 0:00:57]} Rd2 {[%emt 0:00:27]} 42. Re2 {[%emt 0:00:29]} Rxe2 {[%emt 0:00:34]} 43. Kxe2 {[%emt 0:00:07]} a4 {[%emt 0:00:18]} 44. Ke3 $11 {[%emt 0:00:55]} Kxe5 {[%emt 0:01:20]} 45. Kd3 {[%emt 0:00:08]} b6 {[%emt 0:00:00]} 46. Ke3 {[%emt 0:00:24]} Kd6 {[%emt 0:00:28]} 47. Kd4 {[%emt 0:00:56]} Ke6 {[%emt 0:00:12]} 48. Kd3 {[%emt 0:00:33]} Ke5 {[%emt 0:00:22]} 49. Ke3 {[%emt 0:00:10]} Ke6 {[%emt 0:00:40]} 50. Kd4 {[%emt 0:00:38]} Kd6 {[%emt 0:00:01]} 51. Ke3 {[%emt 0:00:44]} Ke5 {[%emt 0:01:47]} 1/2-1/2

[Event "WALTON 40th BAN-ch U20 Girls 2022"]
[Site "Dhaka"]
[Date "2022.02.17"]
[Round "3.3"]
[White "Wadifa, Ahmed"]
[Black "Kazi Zarin, Tasnim"]
[Result "0-1"]
[ECO "C70"]
[WhiteElo "1786"]
[BlackElo "1801"]
[Annotator "NA RC"]
[PlyCount "62"]
[EventDate "2022.02.15"]
[EventType "swiss"]
[EventCountry "BAN"]
[SourceTitle "playchess.com"]
[Source "ChessBase"]
[SourceQuality "1"]
[TimeControl "5400+30"]

{[%evp 11,62,41,35,31,33,29,39,41,35,-35,6,-50,-8,-29,0,-70,-26,-16,-10,-22,-8,-15,0,0,-10,-98,-33,-61,0,-81,-75,-186,-97,-185,-163,-222,-233,-315,-311,-293,-283,-340,-366,-343,-351,-632,-648,-724,-808,-756,-827,-5818,-29988]} 1. e4 {[%emt 0:00:03]} e5 {[%emt 0:05:11]} 2. Nf3 {[%emt 0:00:07]} Nc6 {[%emt 0:00:05]} 3. Bb5 {[%emt 0:00:07]} a6 {[%emt 0:00:05]} 4. Ba4 {[%emt 0:00:07]} b5 {[%emt 0:00:04]} 5. Bb3 {[%emt 0:00:07]} Na5 {[%emt 0:00:04]} 6. Nxe5 {[%emt 0:12:13]} Nxb3 {[%emt 0:00:04]} 7. axb3 {[%emt 0:00:09]} Qe7 {[%emt 0:00:04] 7...Qg5 gains popularity.} 8. d4 {[%emt 0:03:17]} d6 {[%emt 0:00:09]} 9. Nf3 {[%emt 0:00:21]} ({But not} 9. Nc6 Qxe4+ 10. Qe2 Qxe2+ 11. Kxe2 Bb7 $15) 9... Qxe4+ {[%emt 0:00:02]} 10. Qe2 {[%emt 0:00:12]} (10. Be3 $1 $11) 10... Qxe2+ {[%emt 0:00:45]} 11. Kxe2 {[%emt 0:00:03] [#]} Bb7 $146 {[%emt 0:03:19]} ({Predecessor:} 11... Bg4 12. Re1 Kd7 13. Nbd2 g6 14. h3 Bxf3+ 15. Nxf3 h6 16. d5 Bg7 17. c3 Ne7 {½-½ (65) Pasca,M (1538)-Jancso,B (1303) Calimanesti 2014}) 12. Re1 {[%emt 0:01:40]} Kd7 {[%emt 0:05:44]} 13. Be3 {[%emt 0:08:13]} (13. c4 $11) 13... Ne7 {[%emt 0:04:41]} 14. c4 $1 {[%emt 0:02:18]} Nf5 {[%emt 0:04:15]} 15. g4 {[%emt 0:04:01]} Nh6 {[%emt 0:02:51]} (15... Nxe3 $15 16. fxe3 Be7) 16. h3 {[%emt 0:00:17]} f5 {[%emt 0:04:53]} 17. g5 $1 {[%emt 0:00:17]} ({Of course not} 17. Bxh6 fxg4 18. hxg4 gxh6 $17) 17... Nf7 {[%emt 0:00:29]} (17... Re8 $5 {[%cal Rh6f7]} 18. gxh6 f4 $11) 18. Nh4 {[%emt 0:16:10]} (18. d5 $1 $11) 18... g6 {[%emt 0:01:53]} (18... Re8 $17 19. f4 {[#]} Nxg5 $1 20. fxg5 f4) 19. Nc3 {[%emt 0:02:00]} c6 {[%emt 0:13:20]} (19... Re8 $15 20. Kd3 Bg7) 20. cxb5 {[%emt 0:04:14]} (20. c5 $11 {keeps the balance.}) 20... cxb5 {[%emt 0:01:12]} 21. Kd2 {[%emt 0:06:58] [#]} (21. f4 $1 $15) 21... Bg7 {[%emt 0:02:19]} (21... Be7 $1 $19 {[%cal Re7g5]} 22. f4 b4) 22. f3 {[%emt 0:05:56]} (22. Rg1 $17) 22... Nd8 {[%emt 0:02:23]} 23. Ke2 {[%emt 0:07:07]} (23. Ng2 $17) 23... Ne6 {[%emt 0:04:53]} 24. Red1 {[%emt 0:02:57]} Rhe8 {[%emt 0:00:38]} 25. Kf1 {[%emt 0:03:15]} f4 {[%emt 0:01:02]} 26. d5 {[%emt 0:04:49]} fxe3 {[%emt 0:04:26]} 27. dxe6+ {[%emt 0:00:13]} Rxe6 {[%emt 0:00:01]} 28. Rd3 $2 {[%emt 0:01:34]} (28. Ke2) 28... Rf8 {[%emt 0:02:59]} 29. Kg2 {[%emt 0:05:02]} Rf4 {[%emt 0:08:43]} 30. Kg3 {[%emt 0:05:32]} Be5 {[%emt 0:00:06]} 31. Rxe3 $19 {[%emt 0:00:15]} Rxf3+ {[%emt 0:00:10]} 0-1

[Event "WALTON 40th BAN-ch U20 Girls 2022"]
[Site "Dhaka"]
[Date "2022.02.17"]
[Round "3.4"]
[White "Tasnia Tarannum, Orpa"]
[Black "Jannatul, Ferdous"]
[Result "0-1"]
[ECO "D02"]
[WhiteElo "1678"]
[BlackElo "1852"]
[Annotator "NA RC"]
[PlyCount "91"]
[EventDate "2022.02.15"]
[EventType "swiss"]
[EventCountry "BAN"]
[SourceTitle "playchess.com"]
[Source "ChessBase"]
[SourceQuality "1"]
[TimeControl "5400+30"]

{[%evp 8,91,9,5,28,0,18,-29,-16,-28,-18,-61,-12,-97,-32,-35,-27,-30,-8,-2,-18,-64,-64,-131,-51,-48,-45,-72,-49,-63,-61,-67,-61,-403,-346,-327,-343,-549,-214,-287,-282,-272,-158,-175,-92,-119,-39,-137,-120,-177,-175,-187,-176,-191,-197,-216,-229,-269,-259,-239,-210,-225,0,-242,-264,-383,-270,-309,-233,-716,-737,-979,-1049,-897,-1011,-1417,-326,-313,-336,-604,-627,-496,-684,-683,-839,-1791]} 1. d4 {[%emt 0:00:10]} d5 {[%emt 0:00:24]} 2. Bf4 {[%emt 0:00:23]} Nf6 {[%emt 0:00:10]} 3. Nf3 {[%emt 0:00:38]} e6 {[%emt 0:00:15]} 4. e3 {[%emt 0:00:06]} Bd6 {[%emt 0:00:10]} 5. Nbd2 {[%emt 0:00:07]} c5 {[%emt 0:01:02]} 6. Bb5+ {[%emt 0:02:35]} Nc6 $1 {[%emt 0:01:12]} 7. Ne5 {[%emt 0:08:52]} (7. O-O $142) 7... Qc7 {[%emt 0:03:31]} (7... O-O $5 {[%cal Rc5d4]}) 8. c3 {[%emt 0:10:42]} O-O {[%emt 0:02:05]} 9. Ndf3 {[%emt 0:01:38]} (9. Ng4 $11 Nxg4 10. Bxd6 Qxd6 11. Qxg4) 9... Ne4 {[%emt 0:15:36]} (9... Nh5 $15 {feels stronger.}) 10. Qe2 {[%emt 0:19:48]} (10. Nxc6 $15 Bxf4 11. Ne7+ Qxe7 12. exf4) 10... c4 {[%emt 0:04:31]} (10... cxd4 $17 11. cxd4 Qa5+ 12. Kf1 Nb4) 11. Nxc6 {[%emt 0:09:59]} bxc6 {[%emt 0:02:37]} 12. Bxd6 {[%emt 0:01:28]} Qxd6 {[%emt 0:00:57]} 13. Ba4 {[%emt 0:00:15]} Rb8 {[%emt 0:21:46]} 14. Ne5 {[%emt 0:05:28]} (14. O-O $11) 14... f6 $1 {[%emt 0:06:09]} 15. Nf3 {[%emt 0:08:13]} (15. Nxc6 $142 Rb6 16. f3) 15... Bd7 {[%emt 0:01:26]} ({Black should play} 15... e5 $17 16. Qc2 c5) 16. O-O {[%emt 0:04:57]} Rb6 {[%emt 0:02:13]} 17. Rac1 {[%emt 0:05:30]} Rfb8 {[%emt 0:01:54]} 18. b3 {[%emt 0:01:55]} Qa3 {[%emt 0:12:15]} 19. Rc2 {[%emt 0:07:28]} Bc8 {[%emt 0:05:06]} 20. Rb1 $2 {[%emt 0:01:44]} (20. Rfc1 $15) 20... Ba6 {[%emt 0:00:50]} 21. Qe1 {[%emt 0:00:27]} cxb3 {[%emt 0:04:43]} 22. axb3 $2 {[%emt 0:08:22] [#]} (22. Bxb3 Bd3 23. Qc1 Qxc1+ 24. Rbxc1) 22... Bd3 $2 {[%emt 0:00:11]} (22... Qxa4 $3 {[%mdl 512]} 23. bxa4 Rxb1) 23. Rbc1 {[%emt 0:00:42]} Bxc2 {[%emt 0:00:44]} 24. Rxc2 {[%emt 0:00:02]} Qe7 {[%emt 0:06:38]} ({Better is} 24... Rxb3 $19 25. Bxb3 Qxb3) 25. Rc1 {[%emt 0:00:58]} e5 {[%emt 0:02:00]} (25... c5 $19 26. h3 cxd4 27. exd4 a5) 26. Qd1 {[%emt 0:00:17]} Nd6 {[%emt 0:00:30]} (26... Rd8 $17 27. c4 dxc4) 27. Ne1 {[%emt 0:00:43]} (27. dxe5 $11 Nf7 28. exf6 Qxf6 29. c4) 27... e4 {[%emt 0:00:38]} 28. Ra1 {[%emt 0:00:31]} (28. c4 $17 {was called for.} Nf5 29. cxd5 cxd5 30. Rc5) 28... a5 {[%emt 0:00:57]} 29. Qc2 {[%emt 0:00:27]} f5 {[%emt 0:00:38]} 30. Qa2 {[%emt 0:00:28]} g5 {[%emt 0:00:42]} 31. Qc2 {[%emt 0:00:34]} f4 {[%emt 0:00:04]} 32. Rb1 {[%emt 0:00:21]} Kh8 {[%emt 0:02:29]} 33. Qe2 {[%emt 0:00:20]} Nb5 {[%emt 0:01:36]} 34. Rc1 {[%emt 0:00:49]} Nd6 $2 {[%emt 0:00:17]} (34... Rf8 $19 35. c4 Nc7) 35. Rb1 $1 {[%emt 0:00:10]} Qf6 {[%emt 0:00:43]} 36. Qd2 {[%emt 0:00:46]} (36. Rc1 {was called for.}) 36... Rg8 {[%emt 0:00:51]} 37. Qd1 {[%emt 0:00:34]} g4 {[%emt 0:00:15]} 38. Rb2 $2 {[%emt 0:00:31]} (38. exf4 Qxf4 39. Nc2) 38... fxe3 {[%emt 0:00:27]} 39. fxe3 {[%emt 0:00:28]} Rf8 {[%emt 0:00:36]} 40. Qe2 {[%emt 0:00:21]} Nf5 {[%emt 0:00:36]} 41. Nc2 {[%emt 0:00:15]} Ne7 $2 {[%emt 0:00:37]} (41... g3 42. h3 Nh4) 42. Rb1 {[%emt 0:00:13]} Qg5 {[%emt 0:00:33]} 43. b4 {[%emt 0:00:56]} (43. Rf1 $142 Rbb8 44. Rxf8+ Rxf8 45. Qe1) 43... axb4 {[%emt 0:00:20]} 44. cxb4 {[%emt 0:00:20]} g3 {[%emt 0:00:37]} 45. h3 {[%emt 0:00:58]} Rf2 {[%emt 0:00:13]} 46. Qd1 $19 {[%emt 0:01:01]} 0-1